bitfinex/quotes_SOLUSD_20230104
["timestamp","ask_amount","ask_price","bid_price","bid_amount"]
[1672857044344,65.36484922,13.473,13.466,856.1]
[1672857048776,65.36484922,13.473,13.466,978.58787167]
[1672857049496,65.36484922,13.473,13.466,948.58787167]
[1672857052034,65.36484922,13.473,13.467,30.0]
[1672857052641,65.36484922,13.473,13.466,948.58787167]
[1672857052865,65.36484922,13.473,13.467,30.0]
[1672857054324,65.36484922,13.473,13.466,948.58787167]
[1672857054532,65.36484922,13.473,13.467,30.0]
[1672857054763,20.0,13.475,13.467,30.0]
[1672857055188,65.36484922,13.474,13.467,30.0]
[1672857059277,65.36484922,13.474,13.466,948.58787167]
[1672857061470,65.36484922,13.474,13.466,826.1]
[1672857062002,65.36484922,13.474,13.467,129.88129948]
[1672857062634,65.36484922,13.474,13.467,30.0]
[1672857063163,65.36484922,13.474,13.466,122.48787167]
[1672857063999,65.36484922,13.474,13.466,178.22787167]
[1672857064210,65.36484922,13.474,13.466,122.48787167]
[1672857069163,65.36484922,13.474,13.467,159.88129948]
[1672857071030,20.0,13.478,13.467,129.88129948]
[1672857071259,49.76414712,13.473,13.467,129.88129948]
[1672857071683,42.67964678,13.472,13.467,159.88129948]
[1672857072209,92.4437939,13.472,13.466,122.48787167]
[1672857072395,20.0,13.478,13.467,185.62129948]
[1672857072602,87.0,13.48,13.467,215.62129948]
[1672857072603,6.25,13.48,13.467,215.62129948]
[1672857072926,6.25,13.48,13.469,30.0]
[1672857073132,6.24,13.48,13.47,881.82]
[1672857073466,99.42412809,13.479,13.47,826.1]
[1672857073861,43.73412809,13.478,13.47,826.1]
[1672857074193,75.69,13.477,13.47,826.1]
[1672857074410,20.0,13.477,13.47,826.1]
[1672857074599,63.73412809,13.477,13.47,826.1]
[1672857074936,107.60258952,13.477,13.47,826.1]
[1672857075244,55.7,13.476,13.458,118.6959]
[1672857075468,129.15810254,13.47,13.459,11.03087075]
[1672857075650,75.73,13.469,13.459,11.03005115]
[1672857075866,30.0,13.468,13.459,11.03005115]
[1672857076068,40.75,13.467,13.458,118.6959]
[1672857076281,40.75,13.467,13.452,55.8]
[1672857076504,40.75,13.467,13.447,147.50942626]
[1672857076505,6.28,13.46,13.448,174.5059]
[1672857076718,6.28,13.46,13.448,118.6959]
[1672857076719,55.77,13.459,13.448,118.6959]
[1672857076930,146.31492285,13.459,13.449,30.0]
[1672857077136,110.54492285,13.458,13.449,30.0]
[1672857077461,55.78,13.457,13.449,30.0]
[1672857077663,20.0,13.456,13.449,30.0]
[1672857077881,20.0,13.456,13.448,118.6959]
[1672857084159,63.73412809,13.456,13.448,118.6959]
[1672857088383,110.54492285,13.456,13.448,118.6959]
[1672857090607,20.0,13.456,13.448,118.6959]
[1672857090796,75.77,13.459,13.449,30.0]
[1672857091542,63.73412809,13.459,13.449,30.0]
[1672857092680,166.31492285,13.459,13.45,55.81]
[1672857092890,110.54492285,13.459,13.449,85.81]
[1672857093940,110.54492285,13.459,13.449,55.81]
[1672857094150,166.31492285,13.459,13.448,118.6959]
[1672857094462,166.31492285,13.459,13.449,30.0]
[1672857094463,110.54492285,13.459,13.449,30.0]
[1672857094670,166.31492285,13.459,13.449,30.0]
[1672857095018,166.31492285,13.459,13.448,174.5059]
[1672857095208,166.31492285,13.459,13.448,118.6959]
[1672857095531,110.54492285,13.459,13.449,30.0]
[1672857095743,31.38,13.47,13.45,55.81]
[1672857095938,20.0,13.469,13.451,30.0]
[1672857096147,110.54492285,13.469,13.452,55.8]
[1672857096357,30.0,13.467,13.453,30.0]
[1672857096567,55.74,13.466,13.454,55.79]
[1672857096795,146.28492285,13.466,13.455,30.0]
[1672857097110,46.81079476,13.465,13.455,30.0]
[1672857097317,102.55079476,13.465,13.455,30.0]
[1672857097842,132.93825619,13.464,13.442,263.3]
[1672857098044,46.81079476,13.45,13.445,35.2455928]
[1672857098367,75.81,13.449,13.445,35.2455928]
[1672857098580,138.51772762,13.449,13.445,35.2455928]
[1672857098788,116.31769571,13.448,13.445,35.2455928]
[1672857098997,75.82,13.447,13.445,35.2455928]
[1672857099212,73.60996809,13.447,13.445,35.2455928]
[1672857099407,55.77,13.458,13.446,30.0]
[1672857099632,20.0,13.457,13.448,30.0]
[1672857099824,55.77,13.459,13.448,24.5]
[1672857100039,53.69439429,13.458,13.448,24.5]
[1672857100263,55.78,13.457,13.446,85.82]
[1672857100462,55.78,13.457,13.446,30.0]
[1672857100663,53.69439429,13.456,13.446,30.0]
[1672857101084,20.0,13.455,13.446,85.82]
[1672857103941,20.0,13.455,13.445,91.0755928]
[1672857104128,20.0,13.455,13.445,214.05128494]
[1672857104338,73.69439429,13.455,13.445,214.05128494]
[1672857104548,20.0,13.455,13.446,30.0]
[1672857104768,20.0,13.458,13.447,55.82]
[1672857104980,20.0,13.458,13.447,290.9448]
[1672857105411,20.0,13.458,13.448,30.0]
[1672857106024,20.0,13.458,13.45,30.0]
[1672857106453,20.0,13.459,13.45,30.0]
[1672857107075,20.0,13.459,13.449,55.81]
[1672857107397,75.77,13.459,13.449,55.81]
[1672857107611,75.77,13.459,13.448,85.81]
[1672857107812,20.0,13.459,13.448,85.81]
[1672857108023,73.69439429,13.459,13.448,85.81]
[1672857108348,129.46439429,13.459,13.447,235.1248]
[1672857108560,129.46439429,13.459,13.449,30.0]
[1672857110138,129.46439429,13.459,13.448,30.0]
[1672857110340,129.46439429,13.459,13.447,235.1248]
[1672857112139,43.28557971,13.458,13.445,35.2455928]
[1672857112331,75.78,13.457,13.445,35.2455928]
[1672857112545,30.0,13.456,13.445,35.2455928]
[1672857112751,30.0,13.454,13.445,35.2455928]
[1672857113079,75.79,13.453,13.445,35.2455928]
[1672857113289,129.48439429,13.453,13.445,35.2455928]
[1672857113810,0.61013189,13.452,13.446,30.0]
[1672857114027,12.77070402,13.456,13.447,55.82]
[1672857114334,20.0,13.455,13.448,30.0]
[1672857114671,20.0,13.455,13.447,55.82]
[1672857114853,20.0,13.458,13.448,30.0]
[1672857115273,73.69439429,13.458,13.448,30.0]
[1672857115901,73.69439429,13.458,13.447,172.4622]
[1672857118646,73.69439429,13.458,13.448,30.0]
[1672857119380,73.69439429,13.458,13.447,172.4622]
[1672857119909,73.69439429,13.458,13.448,30.0]
[1672857120653,73.69439429,13.458,13.449,55.81]
[1672857120844,20.0,13.458,13.449,55.81]
[1672857121056,20.0,13.459,13.449,55.81]
[1672857121283,20.0,13.459,13.45,30.0]
[1672857122948,6.29,13.46,13.45,30.0]
[1672857123159,6.29,13.46,13.451,55.8]
[1672857123370,6.29,13.46,13.452,30.0]
[1672857124323,6.29,13.46,13.451,55.8]
[1672857124957,6.29,13.46,13.452,30.0]
[1672857125701,55.74,13.467,13.454,30.0]
[1672857125903,20.0,13.466,13.454,144.9736]
[1672857126119,20.0,13.466,13.456,30.0]
[1672857129046,20.0,13.469,13.457,55.78]
[1672857129261,20.0,13.469,13.458,30.0]
[1672857129477,20.0,13.469,13.459,55.77]
[1672857129710,20.0,13.469,13.46,30.0]
[1672857129884,20.0,13.475,13.46,30.0]
[1672857130095,55.71,13.474,13.46,30.0]
[1672857130305,20.0,13.473,13.46,30.0]
[1672857130533,55.72,13.472,13.46,30.0]
[1672857130744,20.0,13.471,13.46,30.0]
[1672857131359,30.0,13.474,13.46,30.0]
[1672857131573,75.71,13.473,13.46,30.0]
[1672857131994,6.29,13.47,13.46,30.0]
[1672857132204,20.0,13.469,13.46,30.0]
[1672857133378,20.0,13.469,13.459,55.77]
[1672857133582,20.0,13.469,13.456,85.78]
[1672857133796,55.73,13.468,13.456,85.78]
[1672857134111,20.0,13.467,13.456,85.78]
[1672857134528,3.263648,13.466,13.456,85.78]
[1672857134935,3.263648,13.466,13.456,55.78]
[1672857135165,3.263648,13.466,13.452,55.8]
[1672857135374,3.263648,13.466,13.447,116.6422]
[1672857135375,6.27,13.46,13.449,55.81]
[1672857135690,79.033648,13.459,13.45,30.0]
[1672857135885,23.263648,13.459,13.45,30.0]
[1672857136082,3.263648,13.458,13.45,30.0]
[1672857136622,3.263648,13.458,13.449,85.81]
[1672857136837,3.263648,13.458,13.449,30.0]
[1672857138417,3.263648,13.458,13.448,164.2029]
[1672857138620,3.263648,13.458,13.445,35.2455928]
[1672857138621,55.78,13.457,13.445,35.2455928]
[1672857138837,20.0,13.456,13.445,35.2455928]
[1672857139040,55.79,13.455,13.445,35.2455928]
[1672857139365,158.113622,13.455,13.445,35.2455928]
[1672857139557,56.95804229,13.454,13.445,35.2455928]
[1672857139979,56.95804229,13.453,13.445,35.2455928]
[1672857140185,56.95804229,13.453,13.446,30.0]
[1672857140400,3.263648,13.452,13.446,30.0]
[1672857142920,20.0,13.456,13.446,30.0]
[1672857143132,3.263648,13.456,13.448,30.0]
[1672857143344,3.263648,13.456,13.449,55.81]
[1672857143558,3.263648,13.456,13.45,30.0]
[1672857144078,3.263648,13.456,13.449,55.81]
[1672857146707,20.0,13.459,13.45,30.0]
[1672857146919,20.0,13.459,13.452,30.0]
[1672857149030,22.78910598,13.459,13.452,30.0]
[1672857149357,22.78910598,13.459,13.451,55.8]
[1672857149876,22.78910598,13.459,13.45,30.0]
[1672857150077,78.55910598,13.459,13.448,30.0]
[1672857152203,53.69439429,13.458,13.448,30.0]
[1672857152404,20.0,13.457,13.448,30.0]
[1672857152621,22.78910598,13.457,13.448,30.0]
[1672857152807,2.78910598,13.456,13.448,30.0]
[1672857153750,2.78910598,13.456,13.447,119.6153]
[1672857155237,53.69439429,13.455,13.448,30.0]
[1672857155555,2.78910598,13.456,13.448,30.0]
[1672857157565,2.78910598,13.456,13.448,85.81]
[1672857160188,2.78910598,13.456,13.448,55.81]
[1672857160410,30.0,13.454,13.445,35.2455928]
[1672857160595,75.79,13.453,13.445,35.2455928]
[1672857160927,30.0,13.452,13.445,35.2455928]
[1672857161139,75.8,13.451,13.445,35.2455928]
[1672857161337,178.27978798,13.451,13.445,35.2455928]
[1672857161556,119.690682,13.451,13.445,35.2455928]
[1672857161751,56.48350027,13.45,13.445,35.2455928]
[1672857161968,20.0,13.449,13.445,35.2455928]
[1672857162287,76.48350027,13.449,13.445,35.2455928]
[1672857162621,56.48350027,13.448,13.445,35.2455928]
[1672857163034,76.48350027,13.447,13.445,35.2455928]
[1672857163241,56.48350027,13.447,13.445,35.2455928]
[1672857163450,73.69439429,13.446,13.445,35.2455928]
[1672857165472,76.41154344,13.446,13.445,35.2455928]
[1672857168207,73.69439429,13.446,13.445,35.2455928]
[1672857168517,20.0,13.446,13.445,35.2455928]
[1672857170851,53.69439429,13.449,13.446,30.0]
[1672857171145,2.73494851,13.454,13.446,85.82]
[1672857172277,2.73494851,13.454,13.446,55.82]
[1672857172504,20.0,13.456,13.445,158.22128494]
[1672857172816,2.73494851,13.455,13.445,158.22128494]
[1672857173134,55.79,13.454,13.445,35.2455928]
[1672857173339,30.0,13.453,13.445,35.2455928]
[1672857173531,75.8,13.452,13.445,35.2455928]
[1672857173745,132.2293428,13.452,13.445,35.2455928]
[1672857173946,45.99628771,13.451,13.445,35.2455928]
[1672857174170,75.81,13.45,13.445,9.28e-05]
[1672857174379,30.0,13.449,13.445,9.28e-05]
[1672857174587,20.0,13.448,13.445,9.28e-05]
[1672857174907,122.42563051,13.448,13.445,9.28e-05]
[1672857175113,102.42563051,13.447,13.445,9.28e-05]
[1672857175512,56.4293428,13.446,13.445,9.28e-05]
[1672857175755,76.4293428,13.446,13.445,9.28e-05]
[1672857176056,122.42563051,13.446,13.445,9.28e-05]
[1672857177628,99.690682,13.446,13.445,9.28e-05]
[1672857177841,13.710682,13.446,13.445,9.28e-05]
[1672857178155,55.78,13.456,13.445,9.28e-05]
[1672857178497,22.73494851,13.455,13.445,9.28e-05]
[1672857178790,2.73494851,13.454,13.445,9.28e-05]
[1672857179521,51.77582862,13.454,13.445,9.28e-05]
[1672857179923,2.73494851,13.453,13.445,9.28e-05]
[1672857180352,51.77582862,13.453,13.445,9.28e-05]
[1672857180765,2.73494851,13.452,13.445,9.28e-05]
[1672857183088,20.0,13.455,13.445,9.28e-05]
[1672857183318,20.0,13.458,13.445,9.28e-05]
[1672857183536,50.0,13.458,13.445,9.28e-05]
[1672857183718,55.78,13.457,13.445,9.28e-05]
[1672857183930,30.0,13.455,13.445,9.28e-05]
[1672857184157,55.79,13.454,13.445,9.28e-05]
[1672857184557,58.52494851,13.454,13.445,9.28e-05]
[1672857184779,55.79,13.455,13.445,9.28e-05]
[1672857184998,55.79,13.455,13.445,55.8300928]
[1672857185208,20.0,13.456,13.446,30.0]
[1672857185609,20.0,13.458,13.446,30.0]
[1672857185825,55.78,13.457,13.447,112.8164]
[1672857186030,20.0,13.456,13.448,30.0]
[1672857186781,20.0,13.458,13.448,30.0]
[1672857186994,55.78,13.457,13.448,30.0]
[1672857187194,20.0,13.456,13.448,30.0]
[1672857187932,3.01061556,13.455,13.447,112.8164]
[1672857189936,3.01061556,13.455,13.448,30.0]
[1672857191311,20.0,13.456,13.448,30.0]
[1672857191505,32.77070402,13.458,13.448,85.81]
[1672857193192,20.0,13.458,13.448,55.81]
[1672857193404,58.79061556,13.457,13.447,112.8164]
[1672857193613,20.0,13.456,13.447,112.8164]
[1672857193824,23.01061556,13.456,13.447,112.8164]
[1672857194035,23.01061556,13.456,13.448,30.0]
[1672857194262,3.01061556,13.456,13.448,30.0]
[1672857194579,56.14389567,13.456,13.448,30.0]
[1672857194774,20.0,13.455,13.448,30.0]
[1672857196158,20.0,13.455,13.447,112.8164]
[1672857196353,76.14389567,13.455,13.447,112.8164]
[1672857196873,23.01061556,13.455,13.447,112.8164]
[1672857197084,20.0,13.458,13.449,30.0]
[1672857197521,3.01061556,13.457,13.449,30.0]
[1672857200121,3.01061556,13.457,13.448,55.81]
[1672857201513,3.01061556,13.457,13.447,112.8164]
[1672857202777,20.0,13.458,13.447,112.8164]
[1672857203176,20.0,13.458,13.448,55.81]
[1672857203412,20.0,13.458,13.449,30.0]
[1672857203716,2.98206085,13.457,13.449,30.0]
[1672857204235,30.0,13.456,13.445,9.28e-05]
[1672857204436,75.79,13.455,13.445,9.28e-05]
[1672857204639,30.0,13.454,13.445,9.28e-05]
[1672857204878,55.79,13.453,13.445,9.28e-05]
[1672857205086,20.0,13.452,13.445,9.28e-05]
[1672857205407,30.0,13.45,13.445,9.28e-05]
[1672857205617,75.81,13.449,13.445,9.28e-05]
[1672857206038,135.92934096,13.449,13.445,9.28e-05]
[1672857206267,2.98206085,13.448,13.445,9.28e-05]
[1672857206994,60.11934096,13.448,13.445,9.28e-05]
[1672857207203,20.0,13.447,13.445,9.28e-05]
[1672857207412,22.98206085,13.447,13.445,9.28e-05]
[1672857207625,2.98206085,13.446,13.445,9.28e-05]
[1672857208980,60.11934096,13.446,13.445,9.28e-05]
[1672857209192,80.11934096,13.446,13.445,9.28e-05]
[1672857209400,135.93934096,13.446,13.445,9.28e-05]
[1672857209616,80.11934096,13.446,13.445,9.28e-05]
[1672857209829,135.93934096,13.446,13.445,9.28e-05]
[1672857210574,80.11934096,13.446,13.445,9.28e-05]
[1672857212676,22.98206085,13.446,13.445,9.28e-05]
[1672857212888,20.0,13.446,13.445,9.28e-05]
[1672857213724,22.98206085,13.446,13.445,9.28e-05]
[1672857215281,80.11934096,13.446,13.445,9.28e-05]
[1672857215511,80.11934096,13.446,13.439,1.9284295]
[1672857215512,30.0,13.445,13.439,1.9284295]
[1672857215708,30.0,13.443,13.439,1.9284295]
[1672857215919,55.84,13.442,13.439,1.9284295]
[1672857216129,145.95934096,13.443,13.439,1.9284295]
[1672857216362,90.11934096,13.443,13.439,1.9284295]
[1672857217277,108.32886855,13.442,13.439,1.9284295]
[1672857217703,30.0,13.44,13.439,1.9284295]
[1672857217911,60.11934096,13.441,13.439,1.9284295]
[1672857218144,57.13728011,13.44,13.439,1.9284295]
[1672857220118,30.0,13.439,13.43,55.89]
[1672857220344,20.0,13.438,13.427,55.9]
[1672857220550,125.79013673,13.438,13.427,55.9]
[1672857220762,60.11934096,13.437,13.427,55.9]
[1672857220973,20.0,13.436,13.427,55.9]
[1672857222665,20.0,13.437,13.427,55.9]
[1672857224967,20.0,13.437,13.426,114.5952]
[1672857225172,20.0,13.437,13.427,55.9]
[1672857225795,2.98206085,13.436,13.427,55.9]
[1672857226136,20.0,13.437,13.428,30.0]
[1672857226443,20.0,13.437,13.429,116.4794943]
[1672857226631,20.0,13.437,13.429,60.5894943]
[1672857227054,22.98206085,13.437,13.429,60.5894943]
[1672857227810,20.0,13.437,13.429,60.5894943]
[1672857228654,22.98206085,13.437,13.429,60.5894943]
[1672857230122,20.0,13.437,13.429,60.5894943]
[1672857230647,22.98206085,13.437,13.429,60.5894943]
[1672857230862,57.13728011,13.441,13.43,55.89]
[1672857231054,57.13728011,13.441,13.43,166.2541]
[1672857231273,25.21,13.44,13.431,30.0]
[1672857231480,25.21,13.44,13.43,166.2541]
[1672857231801,22.98206085,13.439,13.431,30.0]
[1672857232120,2.98206085,13.438,13.43,30.0]
[1672857232309,58.84206085,13.438,13.43,30.0]
[1672857232514,20.0,13.437,13.43,30.0]
[1672857232745,129.60454765,13.439,13.43,30.0]
[1672857232746,109.60454765,13.439,13.43,30.0]
[1672857232960,20.0,13.438,13.43,30.0]
[1672857233801,109.60454765,13.439,13.43,30.0]
[1672857234009,25.21,13.44,13.431,55.89]
[1672857234202,25.21,13.44,13.432,30.0]
[1672857236532,25.21,13.44,13.431,55.89]
[1672857236933,28.19206085,13.44,13.43,199.0598]
[1672857237794,28.19206085,13.44,13.43,143.1698]
[1672857238195,84.04206085,13.44,13.43,199.0598]
[1672857238753,84.04206085,13.44,13.43,55.89]
[1672857238965,30.0,13.438,13.429,60.5894943]
[1672857239176,75.86,13.437,13.429,60.5894943]
[1672857239392,135.97934096,13.437,13.429,60.5894943]
[1672857239578,60.11934096,13.436,13.429,60.5894943]
[1672857239907,135.98934096,13.435,13.429,60.5894943]
[1672857240113,60.11934096,13.435,13.429,60.5894943]
[1672857240330,25.21,13.44,13.43,85.89]
[1672857240537,25.21,13.45,13.431,30.0]
[1672857240749,25.21,13.45,13.433,30.0]
[1672857240750,49.10626967,13.445,13.433,30.0]
[1672857240954,25.21,13.44,13.431,30.0]
[1672857241156,75.85,13.439,13.431,30.0]
[1672857241366,78.83206085,13.439,13.431,30.0]
[1672857241573,2.98206085,13.438,13.43,30.0]
[1672857241803,55.86,13.437,13.43,30.0]
[1672857242118,20.0,13.436,13.43,30.0]
[1672857242330,20.0,13.436,13.429,60.5894943]
[1672857242737,2.98206085,13.437,13.429,60.5894943]
[1672857242942,58.84206085,13.437,13.429,60.5894943]
[1672857243152,20.0,13.436,13.429,60.5894943]
[1672857243568,2.98206085,13.437,13.429,60.5894943]
[1672857243784,58.84206085,13.437,13.429,60.5894943]
[1672857244008,20.0,13.436,13.429,60.5894943]
[1672857244437,22.82059617,13.436,13.429,60.5894943]
[1672857244756,20.0,13.435,13.429,60.5894943]
[1672857244943,20.0,13.435,13.429,55.5894943]
[1672857245277,2.82059617,13.436,13.429,55.5894943]
[1672857245683,20.0,13.437,13.43,30.0]
[1672857247053,20.0,13.437,13.429,55.5894943]
[1672857247259,22.73503865,13.437,13.429,55.5894943]
[1672857247583,30.0,13.435,13.429,55.5894943]
[1672857247775,55.87,13.434,13.429,55.5894943]
[1672857247985,30.0,13.433,13.429,55.5894943]
[1672857248194,139.91959564,13.433,13.429,43.2441943]
[1672857248415,55.1707025,13.432,13.429,43.2441943]
[1672857248629,50.0,13.431,13.422,44.6498635]
[1672857248829,25.0,13.43,13.422,44.6498635]
[1672857249034,30.0,13.428,13.422,44.6498635]
[1672857249464,20.0,13.427,13.422,44.6498635]
[1672857249684,20.0,13.427,13.422,44.1498635]
[1672857249914,32.77070402,13.427,13.422,44.1498635]
[1672857250130,20.0,13.427,13.422,44.1498635]
[1672857251277,25.0,13.43,13.422,44.1498635]
[1672857251478,25.0,13.43,13.423,55.92]
[1672857251900,6.32,13.43,13.424,30.0]
[1672857252110,6.32,13.43,13.423,55.92]
[1672857252536,6.32,13.43,13.422,44.1498635]
[1672857252739,58.42025849,13.43,13.422,44.1498635]
[1672857252949,113.59096099,13.43,13.422,44.1498635]
[1672857255795,30.0,13.428,13.422,44.1498635]
[1672857255998,20.0,13.427,13.422,44.1498635]
[1672857256199,75.1707025,13.427,13.422,44.1498635]
[1672857256409,112.47529699,13.426,13.422,44.1498635]
[1672857256844,55.1707025,13.426,13.422,44.1498635]
[1672857257171,57.30459449,13.425,13.422,44.1498635]
[1672857257689,112.47529699,13.425,13.422,44.1498635]
[1672857258723,112.47529699,13.425,13.422,41.6498635]
[1672857260530,20.0,13.427,13.422,41.6498635]
[1672857260741,57.30459449,13.429,13.422,41.6498635]
[1672857261059,299.7,13.425,13.422,41.6498635]
[1672857261280,57.30459449,13.429,13.423,30.0]
[1672857263686,57.30459449,13.429,13.422,41.6498635]
[1672857270317,58.61503865,13.433,13.422,41.6498635]
[1672857270859,57.30459449,13.432,13.422,41.6498635]
[1672857271049,55.89,13.431,13.422,41.6498635]
[1672857271254,113.18459449,13.432,13.422,41.6498635]
[1672857272460,113.18459449,13.432,13.422,40.1498635]
[1672857273406,113.18459449,13.432,13.423,30.0]
[1672857273605,57.30459449,13.432,13.423,30.0]
[1672857274652,55.86,13.438,13.423,30.0]
[1672857274862,25.04,13.44,13.423,30.0]
[1672857274863,75.1707025,13.437,13.425,30.0]
[1672857275067,75.1707025,13.437,13.426,55.91]
[1672857275068,55.86,13.436,13.426,55.91]
[1672857275271,132.49689799,13.437,13.427,30.0]
[1672857275900,77.32619549,13.437,13.427,30.0]
[1672857276117,20.0,13.437,13.427,30.0]
[1672857276529,55.86,13.436,13.427,30.0]
[1672857276737,55.86,13.437,13.427,30.0]
[1672857276957,20.0,13.436,13.427,30.0]
[1672857277573,20.0,13.438,13.427,30.0]
[1672857277786,55.86,13.437,13.427,30.0]
[1672857277986,20.0,13.436,13.427,30.0]
[1672857278725,20.0,13.438,13.427,30.0]
[1672857279681,27.14569984,13.438,13.427,30.0]
[1672857280084,75.1707025,13.438,13.427,30.0]
[1672857280302,55.86,13.437,13.427,30.0]
[1672857280519,20.0,13.436,13.427,30.0]
[1672857281784,20.0,13.438,13.427,30.0]
[1672857282099,55.86,13.437,13.427,30.0]
[1672857282419,20.0,13.436,13.427,30.0]
[1672857282612,22.74922501,13.436,13.427,30.0]
[1672857283140,2.74922501,13.436,13.427,30.0]
[1672857283349,25.04,13.44,13.428,55.9]
[1672857283588,25.04,13.44,13.429,30.0]
[1672857283778,58.58922501,13.443,13.43,55.89]
[1672857284002,2.74922501,13.443,13.43,55.89]
[1672857284635,55.1707025,13.442,13.431,30.0]
[1672857284859,69.48370318,13.442,13.433,30.0]
[1672857285054,50.15889465,13.441,13.434,55.87]
[1672857285255,55.1707025,13.442,13.434,55.87]
[1672857286747,57.91992751,13.442,13.434,55.87]
[1672857287067,57.91992751,13.442,13.433,30.0]
[1672857287288,57.91992751,13.442,13.434,55.87]
[1672857287475,6.3,13.44,13.432,55.88]
[1672857287688,55.85,13.439,13.43,108.2324]
[1672857287896,58.59922501,13.439,13.43,108.2324]
[1672857288533,99.43269383,13.439,13.43,108.2324]
[1672857288739,43.58269383,13.439,13.43,108.2324]
[1672857288949,2.74922501,13.438,13.43,108.2324]
[1672857289166,2.74922501,13.438,13.431,826.1]
[1672857289700,40.83346882,13.437,13.432,30.0]
[1672857290221,40.83346882,13.437,13.431,826.1]
[1672857290464,40.83346882,13.437,13.432,30.0]
[1672857290852,40.83346882,13.437,13.431,826.1]
[1672857291456,2.74922501,13.436,13.427,55.9]
[1672857291705,55.87,13.435,13.427,30.0]
[1672857292736,55.87,13.435,13.424,85.91]
[1672857292737,58.61922501,13.435,13.424,85.91]
[1672857292952,40.83346882,13.434,13.424,30.0]
[1672857293156,55.88,13.433,13.424,30.0]
[1672857294106,55.88,13.433,13.427,30.0]
[1672857294425,40.83346882,13.434,13.427,30.0]
[1672857294622,20.0,13.436,13.427,30.0]
[1672857294845,60.83346882,13.438,13.427,30.0]
[1672857295241,55.86,13.437,13.427,30.0]
[1672857295566,20.0,13.436,13.427,30.0]
[1672857296392,20.0,13.437,13.427,30.0]
[1672857296604,20.0,13.438,13.428,55.9]
[1672857296813,20.0,13.438,13.427,85.9]
[1672857298410,55.86,13.437,13.427,85.9]
[1672857298596,20.0,13.436,13.427,85.9]
[1672857299344,20.0,13.438,13.427,85.9]
[1672857300401,2.77870901,13.437,13.427,85.9]
[1672857302496,2.77870901,13.437,13.426,111.5844]
[1672857302683,55.86,13.436,13.426,111.5844]
[1672857303097,58.63870901,13.436,13.426,111.5844]
[1672857303313,113.80941151,13.436,13.426,111.5844]
[1672857303842,40.83346882,13.435,13.426,111.5844]
[1672857304166,58.64870901,13.434,13.426,111.5844]
[1672857304573,2.77870901,13.433,13.426,111.5844]
[1672857304782,43.61217783,13.433,13.426,111.5844]
[1672857305214,2.77870901,13.432,13.426,111.5844]
[1672857306990,2.77870901,13.432,13.425,826.1]
[1672857307740,58.65870901,13.432,13.425,826.1]
[1672857309315,2.77870901,13.431,13.425,826.1]
[1672857309512,2.77870901,13.431,13.422,40.1498635]
[1672857309723,174.67529699,13.43,13.422,40.1498635]
[1672857309935,20.0,13.429,13.422,40.1498635]
[1672857310242,82.86358485,13.429,13.422,40.1498635]
[1672857310459,120.16817934,13.428,13.422,40.1498635]
[1672857310675,20.0,13.427,13.422,40.1498635]
[1672857310886,80.08487584,13.427,13.422,40.1498635]
[1672857311108,117.38947033,13.426,13.422,40.1498635]
[1672857311519,60.08487584,13.425,13.422,40.1498635]
[1672857311728,117.38947033,13.425,13.422,40.1498635]
[1672857313418,60.08487584,13.424,13.422,40.1498635]
[1672857313824,57.30459449,13.425,13.422,40.1498635]
[1672857315620,57.30459449,13.425,13.422,39.6498635]
[1672857316255,117.38947033,13.425,13.422,39.6498635]